bitfinex-derivatives/quotes_BNBF0:USTF0_20250305
["timestamp","ask_amount","ask_price","bid_price","bid_amount"]
[1741178430350,4.03322386,598.23,597.24,0.33487375]
[1741178430545,4.03322386,598.22,597.24,0.33487375]
[1741178430751,4.03322386,598.21,597.24,1.58545813]
[1741178430951,5.19994808,598.2,597.24,1.58545813]
[1741178431146,4.03322386,598.19,597.24,1.58545813]
[1741178431351,4.03322386,598.18,597.24,1.58545813]
[1741178431549,5.19994808,598.17,597.24,1.58545813]
[1741178431749,4.03322386,598.16,597.24,1.58545813]
[1741178431949,5.19994808,598.15,597.24,1.58545813]
[1741178432148,4.03322386,598.14,597.24,1.58545813]
[1741178432350,4.03336842,598.13,597.24,1.58545813]
[1741178432551,2.5539734,598.12,597.24,1.58545813]
[1741178432752,2.5539734,598.11,597.24,1.58545813]
[1741178432952,2.5539734,598.1,597.24,1.58545813]
[1741178433157,2.5539734,598.09,597.24,0.33487375]
[1741178433354,2.5539734,598.08,597.24,0.33487375]
[1741178433549,0.92461526,598.07,597.24,0.33487375]
[1741178433748,0.92461526,598.06,597.24,0.33487375]
[1741178433951,0.92461526,598.05,597.24,0.33487375]
[1741178434152,1.16672422,598.06,597.24,0.33487375]
[1741178434354,1.16672422,598.04,597.24,0.33487375]
[1741178434848,1.16672422,598.03,597.24,0.33487375]
[1741178435154,2.09135941,598.02,597.24,0.33487375]
[1741178435448,2.55381682,598.01,597.24,0.33487375]
[1741178435652,2.55381682,598.0,597.24,0.33487375]
[1741178435855,2.55381682,597.99,597.24,0.33487375]
[1741178436051,2.55381682,597.98,597.24,0.33487375]
[1741178436246,2.55405729,597.97,597.24,0.33487375]
[1741178436450,2.55405729,597.96,597.24,0.33487375]
[1741178436652,2.55405729,597.95,597.24,0.33487375]
[1741178436853,3.72078151,597.94,597.24,0.33487375]
[1741178437153,2.55387101,597.93,597.24,0.33487375]
[1741178437353,0.92468938,597.92,597.24,0.33487375]
[1741178437553,2.0914136,597.91,597.24,0.33487375]
[1741178437755,1.16672422,597.91,597.24,0.33487375]
[1741178438254,1.16672422,597.9,597.24,0.33487375]
[1741178438855,1.16672422,597.89,597.24,0.33487375]
[1741178439250,1.4795241,598.0,597.24,0.33487375]
[1741178439452,4.0334765,597.99,597.24,0.33487375]
[1741178439654,2.5539524,597.98,597.24,0.33487375]
[1741178439854,2.5539524,597.97,597.24,0.33487375]
[1741178440054,2.5539524,597.96,597.24,0.33487375]
[1741178440254,3.72075956,597.95,597.24,0.33487375]
[1741178440454,2.5539524,597.94,597.24,0.33487375]
[1741178440654,2.5539524,597.93,597.24,0.33487375]
[1741178440957,3.72075956,597.92,597.24,0.33487375]
[1741178441159,0.9247384,597.91,597.24,0.33487375]
[1741178441458,0.9247384,597.9,597.24,0.33487375]
[1741178441655,1.16680716,597.9,597.24,0.33487375]
[1741178442153,0.29114517,598.08,597.24,0.33487375]
[1741178442154,1.16680716,597.89,597.24,0.33487375]
[1741178442757,2.09218007,597.88,597.24,0.33487375]
[1741178442952,1.16680716,597.88,597.24,0.33487375]
[1741178443157,2.55553762,597.87,597.24,0.33487375]
[1741178443353,4.03575927,597.86,597.24,0.33487375]
[1741178443553,0.92532035,597.85,597.24,0.33487375]
[1741178443750,1.48057472,598.08,597.24,0.33487375]
[1741178443954,4.03618292,598.07,597.24,0.33487375]
[1741178444158,4.03618292,598.06,597.24,0.33487375]
[1741178444357,5.20338892,598.05,597.24,0.33487375]
[1741178444557,4.03618292,598.04,597.24,0.33487375]
[1741178444757,4.03618292,598.03,597.24,0.33487375]
[1741178444958,4.03618292,598.02,597.24,0.33487375]
[1741178445154,4.03618292,598.01,597.24,0.33487375]
[1741178445355,4.03618292,598.0,597.24,0.33487375]
[1741178445553,4.03618292,597.99,597.24,0.33487375]
[1741178445757,4.03618292,597.98,597.24,0.33487375]
[1741178445954,4.03618292,597.97,597.24,0.33487375]
[1741178446158,4.03618292,597.96,597.24,0.33487375]
[1741178446359,2.5556082,597.95,597.24,0.33487375]
[1741178446556,2.5556082,597.94,597.24,0.33487375]
[1741178446756,2.5556082,597.93,597.24,0.33487375]
[1741178446955,2.5556082,597.92,597.24,0.33487375]
[1741178447158,2.5556082,597.91,597.24,0.33487375]
[1741178447354,2.5556082,597.9,597.24,0.33487375]
[1741178447558,3.7228142,597.89,597.24,0.33487375]
[1741178447759,2.5556082,597.88,597.24,0.33487375]
[1741178447960,0.29116953,598.06,597.24,0.33487375]
[1741178447961,2.09256358,597.87,597.24,0.33487375]
[1741178448154,0.92535758,597.86,597.24,0.33487375]
[1741178448358,1.167206,597.87,597.24,0.33487375]
[1741178448556,1.167206,597.86,597.24,0.33487375]
[1741178448955,0.29116953,598.06,597.24,0.33487375]
[1741178448956,1.4807561,598.01,597.24,0.33487375]
[1741178449161,4.03650583,598.0,597.24,0.33487375]
[1741178449461,5.20414762,597.99,597.24,0.33487375]
[1741178449657,4.03653721,597.98,597.24,0.33487375]
[1741178449856,5.204179,597.97,597.24,0.33487375]
[1741178450159,5.204179,597.96,597.24,0.33487375]
[1741178450360,4.03653721,597.95,597.24,0.33487375]
[1741178450657,5.204179,597.94,597.24,0.33487375]
[1741178450856,4.03653721,597.93,597.24,0.33487375]
[1741178451058,4.03653721,597.92,597.24,0.33487375]
[1741178451259,1.16764179,597.94,597.24,0.33487375]
[1741178451260,5.204179,597.91,597.24,0.33487375]
[1741178451458,4.03653721,597.9,597.24,0.33487375]
[1741178451659,5.20442513,597.89,597.24,0.33487375]
[1741178451860,4.03678334,597.88,597.24,0.33487375]
[1741178452057,4.03678334,597.87,597.24,0.33487375]
[1741178452258,4.03678334,597.86,597.24,0.33487375]
[1741178452462,4.03678334,597.85,597.24,0.33487375]
[1741178452664,4.03678334,597.84,597.24,0.33487375]
[1741178452864,4.03678334,597.83,597.24,0.33487375]
[1741178453164,4.03678334,597.82,597.24,0.33487375]
[1741178453364,2.40643444,597.82,597.24,0.33487375]
[1741178453664,1.63078645,597.81,597.24,0.33487375]
[1741178453866,2.40674619,597.81,597.24,0.33487375]
[1741178454061,1.63070836,597.8,597.24,0.33487375]
[1741178454463,4.03754163,597.79,597.24,0.33487375]
[1741178454663,2.5563355,597.78,597.24,0.33487375]
[1741178454966,3.72399006,597.77,597.24,0.33487375]
[1741178455159,2.55634827,597.76,597.24,0.33487375]
[1741178455360,2.55634827,597.75,597.24,0.33487375]
[1741178455560,2.55634827,597.74,597.24,0.33487375]
[1741178455763,2.55634827,597.73,597.24,0.33487375]
[1741178456061,2.09326893,597.72,597.24,0.33487375]
[1741178456264,1.16764179,597.72,597.24,0.33487375]
[1741178456461,0.92548758,597.71,597.24,0.33487375]
[1741178456661,1.16764179,597.71,597.24,0.33487375]
[1741178457464,1.16764179,597.7,597.24,0.33487375]
[1741178457663,1.48074587,597.82,597.24,0.33487375]
[1741178457862,0.179,597.85,597.24,0.33487375]
[1741178457863,2.55610582,597.81,597.24,0.33487375]
[1741178458163,2.09319075,597.8,597.24,0.33487375]
[1741178458367,0.92553846,597.79,597.24,0.33487375]
[1741178458565,0.92529363,597.78,597.24,0.33487375]
[1741178458770,0.92529363,597.77,597.24,0.33487375]
[1741178458970,1.16765229,597.76,597.24,0.33487375]
[1741178459170,0.179,597.85,597.24,0.33487375]
[1741178459369,4.03587638,597.84,597.24,0.33487375]
[1741178459568,2.5554109,597.83,597.24,0.33487375]
[1741178459770,2.5554109,597.82,597.24,0.33487375]
[1741178459969,2.5554109,597.81,597.24,0.33487375]
[1741178460170,2.5554109,597.8,597.24,0.33487375]
[1741178460372,0.92529092,597.79,597.24,0.33487375]
[1741178460567,0.92529092,597.78,597.24,0.33487375]
[1741178460773,1.16740575,597.8,597.24,0.33487375]
[1741178461074,0.179,597.85,597.24,0.33487375]
[1741178466177,0.179,597.85,597.26,1.25058438]
[1741178466682,0.179,597.85,597.27,0.33485693]
[1741178471380,0.179,597.85,597.47,1.25058438]
[1741178473182,0.179,597.85,597.27,1.58544131]
[1741178475179,0.179,597.85,597.3,1.25058438]
[1741178475384,0.179,597.85,597.31,0.3348345]
[1741178477681,1.47874733,598.54,597.31,0.3348345]
[1741178477882,0.29100518,598.43,597.31,0.3348345]
[1741178478085,4.03027652,598.42,597.31,0.3348345]
[1741178478286,4.03027652,598.41,597.31,0.3348345]
[1741178478485,4.03027652,598.4,597.31,0.3348345]
[1741178478686,4.03027652,598.39,597.31,0.3348345]
[1741178478887,5.19579603,598.38,597.31,0.3348345]
[1741178479090,4.03027652,598.37,597.31,0.3348345]
[1741178479390,4.03027652,598.36,597.31,0.3348345]
[1741178479587,2.55201888,598.35,597.31,0.3348345]
[1741178479888,2.55201888,598.34,597.31,0.3348345]
[1741178480187,2.55201888,598.33,597.31,0.3348345]
[1741178480386,0.92391102,598.32,597.31,0.3348345]
[1741178480686,2.08943053,598.31,597.31,0.3348345]
[1741178480886,1.16551951,598.31,597.31,0.3348345]
[1741178481684,0.179,598.32,597.31,0.3348345]
[1741178482484,0.92334227,598.31,597.31,0.3348345]
[1741178482789,2.08886178,598.3,597.31,0.3348345]
[1741178482989,0.92334227,598.29,597.31,0.3348345]
[1741178483190,2.08886178,598.28,597.31,0.3348345]
[1741178483490,2.08886178,598.27,597.31,0.3348345]
[1741178483685,1.16551951,598.27,597.31,0.3348345]
[1741178483992,1.16551951,598.28,597.31,0.3348345]
[1741178484194,1.16551951,598.27,597.31,0.3348345]
[1741178484893,2.08886178,598.28,597.31,0.3348345]
[1741178485397,1.16551951,598.27,597.31,0.3348345]
[1741178485789,1.16551951,598.26,597.31,0.3348345]
[1741178485992,0.92334227,598.25,597.31,0.3348345]
[1741178486594,1.16551951,598.24,597.31,0.3348345]
[1741178486993,1.16551951,598.23,597.31,0.3348345]
[1741178487490,1.16551951,598.24,597.31,0.3348345]
[1741178488196,2.08886178,598.23,597.31,0.3348345]
[1741178488388,0.92334227,598.22,597.31,0.3348345]
[1741178488589,2.08886178,598.21,597.31,0.3348345]
[1741178488794,2.54849462,598.2,597.31,0.3348345]
[1741178489095,3.71401413,598.19,597.31,0.3348345]
[1741178489296,2.54849462,598.18,597.31,0.3348345]
[1741178489594,2.08886178,598.17,597.31,0.3348345]
[1741178489803,0.92334227,598.16,597.31,0.3348345]
[1741178489987,0.92208465,598.15,597.31,0.3348345]
[1741178490188,0.92208465,598.14,597.31,0.3348345]
[1741178490395,0.92208465,598.13,597.31,0.3348345]
[1741178490695,0.92208465,598.12,597.31,0.3348345]
[1741178490897,2.08760416,598.11,597.31,0.3348345]
[1741178491088,0.92196922,598.1,597.31,0.3348345]
[1741178491293,1.16551951,598.09,597.31,0.3348345]
[1741178491795,3.09967423,598.24,597.31,0.3348345]
[1741178491996,4.02171857,598.23,597.31,0.3348345]
[1741178492195,0.29111107,598.28,597.31,0.3348345]
[1741178492196,5.18494992,598.22,597.31,0.3348345]
[1741178492496,4.02171857,598.21,597.31,0.3348345]
[1741178492696,4.02171857,598.2,597.31,0.3348345]
[1741178492888,4.02171857,598.19,597.31,0.3348345]
[1741178493091,4.02171857,598.18,597.31,0.3348345]
[1741178493292,4.02171857,598.17,597.31,0.3348345]
[1741178493492,3.70974402,598.16,597.31,0.3348345]
[1741178493692,2.54651267,598.15,597.31,0.3348345]
[1741178493897,2.54651267,598.14,597.31,0.3348345]
[1741178494197,3.70974402,598.13,597.31,0.3348345]
[1741178494394,2.54651267,598.12,597.31,0.3348345]
[1741178494595,2.54651267,598.11,597.31,0.3348345]
[1741178494790,2.08527569,598.1,597.31,0.3348345]
[1741178494995,2.08527569,598.09,597.31,0.3348345]
[1741178495195,1.16323135,598.09,597.31,0.3348345]
[1741178495689,1.16323135,598.08,597.31,0.3348345]
[1741178495893,1.16323135,598.07,597.31,0.3348345]
[1741178496091,0.92206754,598.06,597.31,0.3348345]
[1741178496295,1.16323135,598.05,597.31,0.3348345]
[1741178496900,1.62460545,598.15,597.31,0.3348345]
[1741178497196,2.54670213,598.14,597.31,0.3348345]
[1741178497392,0.29108794,598.16,597.31,0.3348345]
[1741178497393,2.54670213,598.13,597.31,0.3348345]
[1741178497594,2.54670213,598.12,597.31,0.3348345]
[1741178497898,3.71028541,598.11,597.31,0.3348345]
[1741178498101,2.54670213,598.1,597.31,0.3348345]
[1741178498294,2.54670213,598.09,597.31,0.3348345]
[1741178498498,0.92209668,598.08,597.31,0.3348345]
[1741178498698,2.08567996,598.07,597.31,0.3348345]
[1741178498897,1.16358328,598.07,597.31,0.3348345]
[1741178499105,1.16358328,598.06,597.31,0.3348345]
[1741178499601,1.16358328,598.05,597.31,0.3348345]
[1741178499994,0.179,598.07,597.31,0.3348345]
[1741178500995,1.16338075,598.06,597.31,0.3348345]
[1741178501297,0.179,598.07,597.31,0.3348345]
[1741178501695,0.92214573,598.06,597.31,0.3348345]
[1741178501898,2.54670051,598.05,597.31,0.3348345]
[1741178502101,3.7101123,598.04,597.31,0.3348345]
[1741178502403,2.54670051,598.03,597.31,0.3348345]
[1741178502603,2.54670051,598.02,597.31,0.3348345]
[1741178502807,0.92214573,598.01,597.31,0.3348345]
[1741178503104,0.92214573,598.0,597.31,0.3348345]
[1741178503305,1.16341179,598.01,597.31,0.3348345]
[1741178503604,2.54623106,598.0,597.31,0.3348345]
[1741178503804,0.29112569,598.06,597.31,0.3348345]
[1741178504004,2.54620128,598.05,597.31,0.3348345]
[1741178504201,0.92193234,598.04,597.31,0.3348345]
[1741178504504,2.08513664,598.03,597.31,0.3348345]
[1741178504696,0.92193234,598.02,597.31,0.3348345]
[1741178504898,0.92193234,598.01,597.31,0.3348345]
[1741178505101,1.1632043,598.01,597.31,0.3348345]
[1741178505399,0.92222889,598.0,597.31,0.3348345]
[1741178505598,0.92219125,597.99,597.31,0.3348345]
[1741178505802,1.1632043,598.01,597.31,0.3348345]
[1741178506003,1.1632043,597.98,597.31,0.3348345]
[1741178506203,3.70965619,597.97,597.31,0.3348345]
[1741178506503,2.54645189,597.96,597.31,0.3348345]
[1741178506704,0.92218295,597.95,597.31,0.3348345]
[1741178506904,0.92218295,597.94,597.31,0.3348345]
[1741178507206,2.54645189,597.93,597.31,0.3348345]
[1741178507398,2.54645189,597.92,597.31,0.3348345]
[1741178507704,2.54645189,597.91,597.31,0.3348345]
[1741178507899,2.54645189,597.9,597.31,0.3348345]
[1741178508106,2.54645189,597.89,597.31,0.3348345]
[1741178508300,1.1632043,597.9,597.31,0.3348345]
[1741178508301,2.54645189,597.88,597.31,0.3348345]
[1741178508503,2.54645189,597.87,597.31,0.3348345]
[1741178508805,2.54645189,597.86,597.31,0.3348345]
[1741178509005,2.54645189,597.85,597.31,0.3348345]
[1741178509205,2.54645189,597.84,597.31,0.3348345]
[1741178509403,2.54645189,597.83,597.31,0.3348345]
[1741178509705,2.54645189,597.82,597.31,0.3348345]
[1741178510003,2.54645189,597.81,596.64,1.25058438]
[1741178510207,2.54645189,597.8,596.66,0.33519927]
[1741178510402,2.54645189,597.79,596.66,0.33519927]
[1741178510607,3.70965619,597.78,596.66,0.33519927]
[1741178510809,0.92218295,597.77,596.66,0.33519927]
[1741178511108,3.70772665,597.76,596.66,0.33519927]
[1741178511308,2.54452235,597.75,596.66,0.33519927]
[1741178511503,2.54452235,597.74,596.66,0.33519927]
[1741178511705,3.70772665,597.73,596.66,0.33519927]
[1741178512006,3.70767725,597.72,596.66,0.33519927]
[1741178512205,2.54447295,597.71,596.66,0.33519927]
[1741178512406,0.92218295,597.7,596.66,0.33519927]
[1741178512606,0.92218295,597.69,596.66,0.33519927]
[1741178512809,1.1632043,597.7,596.66,0.33519927]
[1741178513007,0.179,598.07,596.66,0.33519927]
[1741178513603,4.30633935,598.06,596.66,0.33519927]
[1741178513807,2.54226957,598.05,596.66,0.33519927]
[1741178514006,4.01517835,598.04,596.66,0.33519927]
[1741178514207,4.01517835,598.03,596.66,0.33519927]
[1741178514407,1.62170159,598.02,596.66,0.33519927]
[1741178514608,1.16145098,598.03,596.66,0.33519927]
[1741178515005,4.01318088,598.02,596.66,0.33519927]
[1741178515209,1.6209111,598.01,596.66,0.33519927]
[1741178515410,1.16145098,598.03,596.66,0.33519927]
[1741178515609,2.54112323,598.02,596.66,0.33519927]
[1741178515910,0.29127067,598.0,596.66,0.33519927]
[1741178516310,1.62086731,597.99,596.66,0.33519927]
[1741178516907,4.01324474,597.98,596.66,0.33519927]
[1741178517612,4.01324474,597.97,596.66,0.33519927]
[1741178517809,4.01324474,597.96,596.66,0.33519927]
[1741178518011,5.17469572,597.95,596.66,0.33519927]
[1741178518216,4.01324474,597.94,596.66,0.33519927]
[1741178518413,4.01324474,597.93,596.66,0.33519927]
[1741178518608,4.01324474,597.92,596.66,0.33519927]
[1741178518809,4.01324474,597.91,596.66,0.33519927]
[1741178519013,4.01324474,597.9,596.66,0.33519927]
[1741178519208,4.01324474,597.89,596.66,0.33519927]
[1741178519413,4.01324474,597.88,596.66,0.33519927]
[1741178519609,4.01160587,597.87,596.66,0.33519927]
[1741178519915,5.17305685,597.86,596.66,0.33519927]
[1741178520117,4.01160587,597.85,596.66,0.33519927]
[1741178520309,4.01160587,597.84,596.66,0.33519927]
[1741178520512,4.01160587,597.83,596.66,0.33519927]
[1741178520713,4.01160587,597.82,596.66,0.33519927]
[1741178520913,4.01160587,597.81,596.66,0.33519927]
[1741178521113,2.53850055,597.8,596.66,0.33519927]
[1741178521414,3.69995153,597.79,596.66,0.33519927]
[1741178521611,2.53850055,597.78,596.66,0.33519927]
[1741178521816,2.53850055,597.77,596.66,0.33519927]
[1741178522017,2.53850055,597.76,596.66,0.33519927]
[1741178522217,0.92014516,597.76,596.66,0.33519927]
[1741178522413,1.16145098,597.75,596.66,0.33519927]
[1741178523011,0.29133163,597.77,596.66,0.33519927]
[1741178524514,0.179,597.8,596.66,0.33519927]
[1741178532624,0.179,597.8,596.7,1.25058438]
[1741178532821,0.179,597.8,596.72,0.33516557]
[1741178533426,0.91810917,597.79,596.72,0.33516557]
[1741178533828,0.91810917,597.78,596.72,0.33516557]
[1741178534129,0.179,597.8,596.72,0.33516557]
[1741178535334,0.29126945,597.79,596.72,0.33516557]
[1741178536530,0.91810917,597.78,596.72,0.33516557]
[1741178536724,0.179,597.8,596.72,0.33516557]
[1741178536725,0.91810917,597.79,596.72,0.33516557]
[1741178537031,0.91810917,597.78,596.72,0.33516557]
[1741178537227,0.91810917,597.79,596.72,0.33516557]
[1741178537433,0.91810917,597.78,596.72,0.33516557]
[1741178537629,0.179,597.8,596.72,0.33516557]
[1741178537630,0.91810917,597.77,596.72,0.33516557]
[1741178537832,0.29129749,597.78,596.72,0.33516557]
[1741178538130,0.91810917,597.77,596.72,0.33516557]
[1741178538531,0.91810917,597.76,596.72,0.33516557]
[1741178538730,2.07956015,597.77,596.72,0.33516557]
[1741178538929,0.91810917,597.76,596.72,0.33516557]
[1741178539125,2.53585582,597.76,596.72,0.33516557]
[1741178539330,2.07956015,597.76,596.72,0.33516557]
[1741178539626,1.16145098,597.76,596.77,1.25058438]
[1741178539827,0.91810917,597.76,596.78,0.33513187]
[1741178540028,0.29129749,597.78,596.78,0.33513187]
[1741178540735,0.29129749,597.78,596.8,1.25058438]
[1741178540933,0.29129749,597.78,596.81,0.33511502]
[1741178541134,0.91810917,597.77,596.81,0.33511502]
[1741178541334,0.91810917,597.76,596.81,0.33511502]
[1741178541634,2.53788003,597.75,596.81,0.33511502]
[1741178541833,0.91810917,597.74,596.81,0.33511502]
[1741178542036,2.07956015,597.73,596.81,0.33511502]
[1741178542234,0.91952055,597.72,596.81,0.33511502]
[1741178542535,0.9198223,597.71,596.81,0.33511502]
[1741178542835,0.9198223,597.7,596.81,0.33511502]
[1741178543028,0.9198223,597.69,596.81,0.33511502]
[1741178543234,0.91973683,597.68,596.81,0.33511502]
[1741178543533,2.0813392,597.7,596.81,0.33511502]
[1741178543728,2.0813392,597.69,596.81,0.33511502]
[1741178543933,1.16145098,597.69,596.81,0.33511502]
[1741178544135,0.9198845,597.68,596.81,0.33511502]
[1741178544330,3.09233892,597.76,596.81,0.33511502]
[1741178544534,4.01241601,597.75,596.81,0.33511502]
[1741178544833,4.01241601,597.74,596.81,0.33511502]
[1741178545036,4.01241601,597.73,596.81,0.33511502]
[1741178545235,2.54058734,597.72,596.81,0.33511502]
[1741178545437,2.54058734,597.71,596.81,0.33511502]
[1741178545636,3.70203832,597.7,596.81,0.33511502]
[1741178545836,2.54058734,597.69,596.81,0.33511502]
[1741178546039,0.92007709,597.68,596.81,0.33511502]
[1741178546343,2.54099125,597.67,596.81,0.33511502]
[1741178546537,2.54099125,597.66,596.81,0.33511502]
[1741178546741,3.70244223,597.65,596.81,0.33511502]
[1741178546940,2.54099125,597.64,596.81,0.33511502]
[1741178547141,3.70244223,597.63,596.81,0.33511502]
[1741178547436,2.54099125,597.62,596.81,0.33511502]
[1741178547643,3.70244223,597.61,596.81,0.33511502]
[1741178547838,2.54099125,597.6,596.81,0.33511502]
[1741178548036,3.70244223,597.59,596.81,0.33511502]
[1741178548341,0.92007709,597.58,596.81,0.33511502]
[1741178548537,2.08152807,597.58,596.81,0.33511502]
[1741178548741,1.16145098,597.58,596.81,0.33511502]
[1741178548941,1.16145098,597.57,596.81,0.33511502]
[1741178549441,3.70264911,597.62,596.81,0.33511502]
[1741178549641,2.54119813,597.61,596.81,0.33511502]
[1741178549842,2.54119813,597.6,596.81,0.33511502]
[1741178550043,2.54119813,597.59,596.81,0.33511502]
[1741178550243,0.92007709,597.58,596.81,0.33511502]
[1741178550439,0.29139261,597.62,596.81,0.33511502]
[1741178550440,2.08152807,597.59,596.81,0.33511502]
[1741178550639,1.16145098,597.59,596.81,0.33511502]
[1741178551042,2.08152807,597.6,596.81,0.33511502]
[1741178551446,0.92007709,597.59,596.81,0.33511502]
[1741178551946,0.92007709,597.58,596.81,0.33511502]
[1741178552240,2.08152807,597.59,596.81,0.33511502]
[1741178552441,1.16145098,597.59,596.81,0.33511502]
[1741178552747,0.92007709,597.63,596.81,0.33511502]
[1741178552943,0.92007709,597.62,596.81,0.33511502]
[1741178553144,0.92007709,597.61,596.81,0.33511502]
[1741178553545,1.16145098,597.62,596.81,0.33511502]
[1741178553741,0.92084347,597.66,596.81,0.33511502]
[1741178554047,0.92084347,597.65,596.81,0.33511502]
[1741178554349,0.92084347,597.64,596.81,0.33511502]
[1741178554648,2.08256746,597.65,596.81,0.33511502]
[1741178554947,0.92084347,597.64,596.81,0.33511502]
[1741178555147,0.92084347,597.63,596.81,0.33511502]
[1741178555352,0.92084347,597.65,596.81,0.33511502]
[1741178555545,2.08256746,597.64,596.81,0.33511502]
[1741178555746,0.92084347,597.63,596.81,0.33511502]
[1741178555946,1.16172399,597.62,596.81,0.33511502]
[1741178556147,2.08256746,597.62,596.81,0.33511502]
[1741178556448,5.17847853,597.61,596.81,0.33511502]
[1741178556649,4.01675454,597.6,596.81,0.33511502]
[1741178556948,4.01675454,597.59,596.81,0.33511502]
[1741178557150,4.01675454,597.58,596.81,0.33511502]
[1741178557351,4.01675454,597.57,596.81,0.33511502]
[1741178557545,4.01675454,597.56,596.81,0.33511502]
[1741178557750,2.54312538,597.55,596.81,0.33511502]
[1741178558051,2.54312538,597.54,596.81,0.33511502]
[1741178558242,2.54312538,597.53,596.81,0.33511502]
[1741178558552,2.54312538,597.52,596.81,0.33511502]
[1741178558845,2.54312538,597.51,596.81,0.33511502]
[1741178559048,2.54312538,597.5,596.81,0.33511502]
[1741178559246,0.92084347,597.49,596.81,0.33511502]
[1741178559446,1.16172399,597.51,596.81,0.33511502]
[1741178559848,3.09851262,597.64,596.81,0.33511502]
[1741178560049,4.02030441,597.63,596.81,0.33511502]
[1741178560251,5.18328969,597.62,596.81,0.33511502]
[1741178560448,4.02103836,597.61,596.81,0.33511502]
[1741178560744,3.70864252,597.6,596.81,0.33511502]
[1741178560946,2.54565724,597.59,596.81,0.33511502]
[1741178561146,2.54565724,597.58,596.81,0.33511502]
[1741178561347,2.54607166,597.57,596.81,0.33511502]
[1741178561642,2.54607166,597.56,596.81,0.33511502]
[1741178561849,2.54773341,597.55,596.81,0.33511502]
[1741178562048,3.71071869,597.54,596.81,0.33511502]
[1741178562251,4.02371038,597.53,596.81,0.33511502]
[1741178562444,5.18669566,597.52,596.81,0.33511502]
[1741178562645,4.02371038,597.51,596.81,0.33511502]
[1741178562844,2.54773341,597.5,596.81,0.33511502]
[1741178563145,2.54773341,597.49,596.81,0.33511502]
[1741178563347,2.54773341,597.48,596.81,0.33511502]
[1741178563545,3.71111314,597.47,596.81,0.33511502]
[1741178563750,2.54812786,597.46,596.81,0.33511502]
[1741178564052,3.71111314,597.45,596.81,0.33511502]
[1741178564252,4.0243202,597.44,596.81,0.33511502]
[1741178564452,0.179,597.67,596.81,0.33511502]
[1741178564453,5.18730548,597.43,596.81,0.33511502]
[1741178564648,2.54812786,597.42,596.81,0.33511502]
[1741178564952,3.71111314,597.41,596.81,0.33511502]
[1741178565153,1.16298528,597.41,596.81,0.33511502]
[1741178565452,2.54863141,597.4,596.81,0.33511502]
[1741178565752,2.54863141,597.39,596.81,0.33511502]
[1741178565954,2.54863141,597.38,596.81,0.33511502]
[1741178566146,2.08576724,597.37,596.81,0.33511502]
[1741178566351,2.08576724,597.36,596.81,0.33511502]
[1741178566546,0.92278196,597.35,596.81,0.33511502]
[1741178566747,1.16298528,597.36,596.81,0.33511502]
[1741178566953,2.08600353,597.35,596.81,0.33511502]
[1741178567153,0.92300893,597.34,596.81,0.33511502]
[1741178567350,0.92300893,597.33,596.81,0.33511502]
[1741178567546,0.92300893,597.32,596.81,0.33511502]
[1741178567751,0.92300893,597.31,596.81,0.33511502]
[1741178567952,0.92300893,597.3,596.81,0.33511502]
[1741178568147,0.92300893,597.29,596.81,0.33511502]
[1741178568357,1.16298528,597.3,596.81,0.33511502]
[1741178568655,1.16298528,597.29,596.81,0.33511502]
[1741178569049,1.4766823,597.48,596.81,0.33511502]
[1741178569254,4.02541535,597.47,596.81,0.33511502]
[1741178569453,4.02541535,597.46,596.81,0.33511502]
[1741178569649,4.02541535,597.45,596.81,0.33511502]
[1741178569851,4.02541535,597.44,596.81,0.33511502]
[1741178570055,1.45574256,597.46,596.81,0.33511502]
[1741178570056,4.02541535,597.43,596.81,0.33511502]
[1741178570249,4.02541535,597.42,596.81,0.33511502]
[1741178570448,2.54873305,597.41,596.81,0.33511502]
[1741178570662,2.54873305,597.4,596.81,0.33511502]
[1741178570853,2.54873305,597.39,596.81,0.33511502]
[1741178571050,2.54873305,597.38,596.81,0.33511502]
[1741178571257,2.54873305,597.37,596.81,0.33511502]
[1741178571454,3.71305615,597.36,596.81,0.33511502]
[1741178571756,2.54873305,597.35,596.81,0.33511502]
[1741178571947,2.54873305,597.34,596.81,0.33511502]
[1741178572147,3.71305615,597.33,596.81,0.33511502]
[1741178572353,1.1643231,597.33,596.81,0.33511502]
[1741178572749,1.1643231,597.32,596.81,0.33511502]
[1741178573355,3.10069084,597.59,596.81,0.33511502]
[1741178573657,4.02283863,597.58,596.81,0.33511502]
[1741178573857,4.02283863,597.57,596.81,0.33511502]
[1741178574157,4.02283863,597.56,596.81,0.33511502]
[1741178574352,5.18631104,597.55,596.81,0.33511502]
[1741178574558,4.02283863,597.54,596.81,0.33511502]
[1741178574759,4.02283863,597.53,596.81,0.33511502]
[1741178574960,4.02283863,597.52,596.81,0.33511502]
[1741178575256,1.16347241,597.53,596.81,0.33511502]
[1741178575257,4.02283863,597.51,596.81,0.33511502]
[1741178575559,5.18631104,597.5,596.81,0.33511502]
[1741178575757,4.02283863,597.49,596.81,0.33511502]
[1741178575956,4.02283863,597.48,596.81,0.33511502]
[1741178576159,4.02283863,597.47,596.81,0.33511502]
[1741178576361,4.02283863,597.46,596.81,0.33511502]
[1741178576553,4.02283863,597.45,596.81,0.33511502]